[Event "Aktobe Open 2022"]
[Site "Aktobe"]
[Date "2022.06.20"]
[Round "9.1"]
[White "Agmanov, Zhandos"]
[Black "Ponkratov, Pavel"]
[Result "1/2-1/2"]
[ECO "B51"]
[WhiteElo "2420"]
[BlackElo "2624"]
[Annotator "TA"]
[PlyCount "44"]
[EventDate "2022.06.14"]
[EventType "swiss"]
[EventCountry "KAZ"]
[SourceTitle "playchess.com"]
[Source "ChessBase"]
[SourceQuality "1"]
[TimeControl "5400+30"]

{[%evp 9,44,8,0,-1,12,29,37,22,50,21,41,14,26,12,15,25,22,17,15,15,30,-3,0,-4,-1,-12,-14,-6,-10,-4,-10,-6,0,0,0,2,19]} 1. e4 {[%emt 0:00:16]} c5 {[%emt 0:00:06]} 2. Nf3 {[%emt 0:00:49]} d6 {[%emt 0:00:05]} 3. Bb5+ {[%emt 0:01:44]} Nd7 {[%emt 0:00:05]} 4. d4 {[%emt 0:01:42]} cxd4 {[%emt 0:00:10]} 5. Nxd4 {[%emt 0:00:04]} Ngf6 {[%emt 0:00:04]} 6. O-O {[%emt 0:00:34] B51: Sicilian: Moscow Variation (3 Bb5+) without 3...Bd7.} g6 {[%emt 0:01:27]} 7. Re1 {[%emt 0:00:37]} Bg7 {[%emt 0:00:05]} 8. Bf1 {[%emt 0:00:05] White is slightly better.} Nc5 {[%emt 0:03:06]} 9. Nc3 {[%emt 0:38:35]} O-O {[%emt 0:00:56]} 10. Nb3 {[%emt 0:01:32]} b6 {[%emt 0:14:27]} 11. f3 {[%emt 0:01:04]} Bb7 {[%emt 0:00:29] [#]} 12. Be3 $146 {[%emt 0:00:32]} ({Predecessor:} 12. Nd5 Rc8 13. c4 Na4 14. Nd4 Nc5 15. Bg5 e6 16. Nc3 a6 17. Qd2 Qc7 18. Rad1 {1-0 (34) Dojkova,G (2076)-Dimitrova,T (2005) Pamporovo 2001}) 12... Rc8 {[%emt 0:10:34]} 13. Qd2 {[%emt 0:01:20]} a6 {[%emt 0:01:26]} 14. Rad1 {[%emt 0:07:21]} Nfd7 {[%emt 0:01:16]} 15. Nd4 {[%emt 0:03:57]} b5 {[%emt 0:01:54] The position is equal.} 16. Nd5 {[%emt 0:04:49]} Na4 {[%emt 0:11:53]} 17. b3 {[%emt 0:02:46]} Bxd5 {[%emt 0:02:18]} 18. exd5 {[%emt 0:05:46]} Nc3 {[%emt 0:00:16]} 19. Nc6 {[%emt 0:01:20]} Rxc6 {[%emt 0:00:06]} ({Resist} 19... Qe8 20. Bg5 Nxd1 21. Rxe7 $16 (21. Qxd1 Rxc6 22. Rxe7 Rc5 $11) (21. Nxe7+ Kh8 $16)) 20. dxc6 {[%emt 0:00:08]} Nb8 {[%emt 0:08:59] Pair of Knights!} 21. Ra1 {[%emt 0:02:48] [#] Bd4 is the strong threat.} Nxc6 {[%emt 0:00:25]} 22. a4 {[%emt 0:00:53]} Qc7 {[%emt 0:09:08] Weighted Error Value: White=0.07 (flawless) /Black=0.03 (flawless)} 1/2-1/2

[Event "Aktobe Open 2022"]
[Site "Aktobe"]
[Date "2022.06.20"]
[Round "9.2"]
[White "Vakhidov, Jakhongir"]
[Black "Rychagov, Andrey"]
[Result "1-0"]
[ECO "D31"]
[WhiteElo "2552"]
[BlackElo "2549"]
[Annotator "TA"]
[PlyCount "110"]
[EventDate "2022.06.14"]
[EventType "swiss"]
[EventCountry "KAZ"]
[SourceTitle "playchess.com"]
[Source "ChessBase"]
[SourceQuality "1"]
[TimeControl "5400+30"]

{[%evp 14,110,27,28,25,26,26,25,23,18,19,23,22,20,23,39,39,30,43,33,35,33,35,35,32,32,47,34,37,20,36,29,28,34,47,61,59,43,52,19,43,42,41,46,58,60,61,50,61,70,72,61,113,114,91,97,103,93,153,153,137,151,345,364,461,461,460,461,447,379,324,250,374,362,482,460,492,460,495,469,461,285,285,275,274,234,958,947,893,917,841,829,783,748,6179,830,5193,2701,5485]} 1. c4 {[%emt 0:00:04]} e6 {[%emt 0:00:13]} 2. Nc3 {[%emt 0:00:07]} d5 {[%emt 0:00:06]} 3. d4 {[%emt 0:00:06]} Be7 {[%emt 0:00:18]} 4. cxd5 {[%emt 0:00:08]} exd5 {[%emt 0:00:03]} 5. Bf4 {[%emt 0:00:10]} c6 {[%emt 0:00:07]} 6. e3 {[%emt 0:00:07]} Bd6 {[%emt 0:00:27]} 7. Bxd6 {[%emt 0:00:16]} Qxd6 {[%emt 0:00:05]} 8. Bd3 {[%emt 0:00:08]} Ne7 {[%emt 0:00:17] D31: Queen's Gambit Declined: Semi-Slav without ...Nf6 (+ Marshall Gambit and Noteboom) and Exchange Variation lines without ...Nf6.} 9. Qc2 {[%emt 0:00:08]} b6 {[%emt 0:00:19]} 10. Nf3 {[%emt 0:00:08]} (10. Bxh7 $2 f5 11. Nf3 Rxh7 $19) 10... Ba6 {[%emt 0:00:11] White has an edge.} 11. O-O {[%emt 0:00:09]} Bxd3 {[%emt 0:00:16]} 12. Qxd3 {[%emt 0:00:07]} O-O {[%emt 0:00:23]} 13. Rac1 {[%emt 0:00:06]} Nd7 {[%emt 0:04:22]} 14. Rc2 {[%emt 0:00:10]} a5 {[%emt 0:06:30] [#]} 15. Rfc1 $146 {[%emt 0:00:57]} ({Predecessor:} 15. b3 g6 16. h4 Qe6 17. Na4 Kg7 18. Rfc1 h6 19. Nb2 Rfc8 20. Qf1 Ra7 21. Nd3 Nf6 22. Nfe5 Rac7 23. Qe1 {½-½ (23) Kuliy,O (2003)-Wilson,N (2065) FICGS email 2020}) 15... a4 {[%emt 0:05:06]} 16. h3 {[%emt 0:00:25]} h6 {[%emt 0:00:51]} 17. Qd1 {[%emt 0:01:20]} Ra5 {[%emt 0:07:37]} 18. Rd2 {[%emt 0:03:20]} Rfa8 {[%emt 0:01:05]} 19. Ne1 {[%emt 0:00:11]} Nf8 {[%emt 0:05:56]} 20. Nd3 {[%emt 0:01:42]} Ne6 {[%emt 0:00:19]} 21. Qh5 {[%emt 0:00:56]} g6 {[%emt 0:12:22]} 22. Qf3 {[%emt 0:03:08]} (22. Qxh6 $2 Nf5 23. Qf4 Nxf4 $19) 22... Kg7 {[%emt 0:03:47]} 23. h4 {[%emt 0:07:23][%cal Bh3h4,Bh4h5][%mdl 32]} Rd8 {[%emt 0:03:31]} 24. h5 {[%emt 0:06:06]} (24. b4 axb3 25. axb3 h5 $11) 24... g5 {[%emt 0:07:46]} 25. Qd1 {[%emt 0:05:37]} (25. Ne5 {keeps more tension.} f6 26. Ng4 f5 27. Ne5) 25... Rda8 {[%emt 0:00:35]} 26. Ne1 {[%emt 0:15:01]} Ng8 {[%emt 0:03:05]} 27. Ne2 {[%emt 0:01:59]} Ne7 {[%emt 0:02:28]} 28. Ng3 {[%emt 0:03:03]} Rf8 {[%emt 0:01:34]} 29. Qc2 {[%emt 0:08:05]} a3 {[%emt 0:12:47]} 30. b3 {[%emt 0:00:40]} c5 {[%emt 0:00:33]} 31. dxc5 {[%emt 0:02:46]} Rxc5 {[%emt 0:00:08]} 32. Qb1 {[%emt 0:00:08]} Rfc8 {[%emt 0:02:53]} (32... f5 $14) 33. Rcd1 $16 {[%emt 0:05:32]} Qc7 {[%emt 0:02:27]} 34. Ne2 {[%emt 0:04:23]} Rc6 {[%emt 0:02:04]} 35. Qa1+ {[%emt 0:03:04]} f6 {[%emt 0:01:50] [#]} (35... Kg8 $142) 36. e4 $1 {[%emt 0:04:16]} Nf4 {[%emt 0:02:48]} (36... dxe4 $2 37. Rd7 $18) 37. exd5 {[%emt 0:00:13]} (37. Nxf4 Qxf4 38. Nd3 (38. exd5 Rc1 $14) 38... Qd6 $14) 37... Nfxd5 {[%emt 0:04:25] Loses the game.} (37... Nexd5 $2 38. Nxf4 Qxf4 39. Rxd5 $18) (37... Nxe2+ $16 38. Rxe2 Rd6) 38. Nd4 $18 {[%emt 0:00:45]} ({Resist} 38. Rxd5 Nxd5 39. Rxd5 Rc5 $18) 38... Nc3 {[%emt 0:00:46]} (38... Rd6 $2 39. Nb5 Qd8 40. Nxd6 Qxd6 41. Nc2 $18) 39. Nxc6 {[%emt 0:01:13]} Qxc6 {[%emt 0:00:30] [#]} 40. Rc2 $1 {[%emt 0:02:59]} b5 {[%emt 0:00:39]} 41. b4 {[%emt 0:03:24]} Ned5 {[%emt 0:02:47]} 42. Rd3 {[%emt 0:05:27] Strongly threatening Nf3.} Qc4 {[%emt 0:01:00]} (42... Qe6 $142 43. Nf3 Ne2+ 44. Rxe2 Qxe2 45. Rxd5 Qb2 46. Rd7+ Kf8) 43. g3 {[%emt 0:01:01]} ({Less strong is} 43. Rxd5 Qxd5 44. Rxc3 Rxc3 45. Qxc3 Qxa2 46. Qc7+ Kg8 47. Qc8+ Kg7 48. Qd7+ (48. Nc2 Qb1+ 49. Kh2 a2 $16) 48... Kf8 $16) 43... Rc7 {[%emt 0:01:48] [#]} 44. Rxd5 $1 {[%emt 0:03:01][%mdl 512]} Qxd5 {[%emt 0:00:02]} 45. Rxc3 {[%emt 0:00:07]} Rxc3 {[%emt 0:00:02]} 46. Qxc3 {[%emt 0:00:07]} Qxa2 {[%emt 0:00:03]} 47. Kf1 {[%emt 0:05:34]} Qb2 {[%emt 0:00:45]} (47... Qc4+ $2 48. Qxc4 bxc4 49. b5 $18) 48. Qc7+ {[%emt 0:01:20]} Kg8 {[%emt 0:02:13]} 49. Qd8+ {[%emt 0:00:08]} Kg7 $2 {[%emt 0:00:18]} (49... Kf7 50. Qd7+ Kf8) 50. Qe7+ {[%emt 0:00:19] White is clearly winning.} Kg8 {[%emt 0:00:04]} 51. Qe8+ {[%emt 0:00:04]} Kg7 {[%emt 0:00:06]} 52. Qg6+ {[%emt 0:00:05]} Kf8 {[%emt 0:00:02]} 53. Qxh6+ {[%emt 0:00:08]} Ke7 {[%emt 0:00:12]} 54. Qh7+ {[%emt 0:00:15]} Kd6 {[%emt 0:00:07]} 55. Qc2 {[%emt 0:01:00]} Kd5 {[%emt 0:07:02] Weighted Error Value: White=0.08 (flawless) /Black=0.21 (precise)} 1-0

[Event "Aktobe Open 2022"]
[Site "Aktobe"]
[Date "2022.06.20"]
[Round "9.3"]
[White "Nogerbek, Kazybek"]
[Black "Nesterov, Arseniy"]
[Result "1/2-1/2"]
[ECO "D31"]
[WhiteElo "2424"]
[BlackElo "2569"]
[Annotator "TA"]
[PlyCount "76"]
[EventDate "2022.06.14"]
[EventType "swiss"]
[EventCountry "KAZ"]
[SourceTitle "playchess.com"]
[Source "ChessBase"]
[SourceQuality "1"]
[TimeControl "5400+30"]

{[%evp 19,76,0,0,0,0,0,10,-7,0,0,0,0,0,-3,14,7,5,0,0,0,9,-19,-12,-16,-13,-26,-16,-29,-21,-15,-8,-17,-14,-29,0,0,0,0,0,0,0,0,0,0,0,0,0,0,0,0,0,0,0,0,0,0,0,0,0]} 1. d4 {[%emt 0:00:08]} d5 {[%emt 0:00:04]} 2. c4 {[%emt 0:00:12]} e6 {[%emt 0:00:06]} 3. Nc3 {[%emt 0:00:10]} c6 {[%emt 0:00:05]} 4. cxd5 {[%emt 0:00:28]} exd5 {[%emt 0:00:14]} 5. Bf4 {[%emt 0:00:10]} Bd6 {[%emt 0:01:12]} 6. Bxd6 {[%emt 0:00:27]} Qxd6 {[%emt 0:00:02]} 7. e3 {[%emt 0:00:35]} Bf5 {[%emt 0:00:23]} 8. Bd3 {[%emt 0:01:02]} Ne7 {[%emt 0:01:11]} 9. Nf3 {[%emt 0:02:33]} O-O {[%emt 0:00:56]} 10. O-O {[%emt 0:00:21]} Nd7 {[%emt 0:00:43][%cal Bb8d7,Bd7f6,Bf6h5][%mdl 32]} 11. Bxf5 {[%emt 0:03:00] D31: Queen's Gambit Declined: Semi-Slav without ...Nf6 (+ Marshall Gambit and Noteboom) and Exchange Variation lines without ...Nf6.} Nxf5 {[%emt 0:00:05]} 12. Qd3 {[%emt 0:00:07]} Qg6 {[%emt 0:15:58]} 13. Rfd1 {[%emt 0:06:01] [#]} a5 $146 {[%emt 0:03:52]} ({Predecessor:} 13... Nd6 14. Qxg6 hxg6 15. Rac1 f6 16. Rc2 g5 17. h3 Kf7 18. Na4 Rfe8 19. Kf1 Re7 {½-½ (26) Mirzoev,A (2546)-Korneev,O (2582) Elgoibar 2010}) 14. e4 {[%emt 0:02:27]} dxe4 {[%emt 0:00:22]} 15. Qxe4 {[%emt 0:00:17]} Nf6 {[%emt 0:06:20]} 16. Qf4 {[%emt 0:02:04] [#] Strongly threatening Ne5.} Nh5 {[%emt 0:02:55]} 17. Qg5 {[%emt 0:01:42]} Qxg5 {[%emt 0:04:25]} 18. Nxg5 {[%emt 0:00:07] And now g4 would win.} Nf6 {[%emt 0:03:04]} 19. d5 {[%emt 0:00:46]} c5 {[%emt 0:06:03]} 20. Nge4 {[%emt 0:08:45]} Nxe4 {[%emt 0:00:20]} 21. Nxe4 {[%emt 0:00:06]} b6 {[%emt 0:00:09]} 22. a4 {[%emt 0:00:15]} Rad8 {[%emt 0:03:30]} 23. Nd2 {[%emt 0:01:11]} Rxd5 {[%emt 0:10:50] [#] ...Rfd8 is the strong threat.} 24. Nc4 {[%emt 0:03:02][%csl LRb6,LRd5]} Rxd1+ {[%emt 0:00:32]} 25. Rxd1 $11 {[%emt 0:00:05][%mdl 4096] Endgame KRN-KRN} Rb8 {[%emt 0:01:05]} 26. Nxb6 {[%emt 0:01:34]} g6 {[%emt 0:01:29]} 27. Nd7 {[%emt 0:02:20] The position is equal.} Rxb2 {[%emt 0:00:15] aiming for ...c4.} 28. Nxc5 {[%emt 0:00:05]} Rb4 {[%emt 0:00:59]} 29. g3 {[%emt 0:00:18]} Nd4 {[%emt 0:02:02]} 30. Kg2 {[%emt 0:01:04]} h5 {[%emt 0:01:02]} 31. Re1 {[%emt 0:03:25]} Rc4 {[%emt 0:03:24]} 32. Re5 {[%emt 0:00:43]} Nc6 {[%emt 0:00:32]} 33. Rd5 {[%emt 0:00:54]} Ne7 {[%emt 0:06:37]} 34. Re5 {[%emt 0:00:15]} Nc6 {[%emt 0:00:04]} 35. Rd5 {[%emt 0:00:04]} Kg7 {[%emt 0:00:06]} 36. Nb7 {[%emt 0:00:21]} Rxa4 {[%emt 0:00:21]} 37. Rc5 {[%emt 0:00:07]} Rb4 {[%emt 0:00:55]} 38. Nxa5 {[%emt 0:00:05]} Nxa5 {[%emt 0:00:02] An even fight not without its subleties.  Weighted Error Value: White=0.04 (flawless) /Black=0.02 (flawless)} 1/2-1/2

[Event "Aktobe Open 2022"]
[Site "Aktobe"]
[Date "2022.06.20"]
[Round "9.4"]
[White "Sivuk, Vitaly"]
[Black "Utegaliyev, Azamat"]
[Result "1-0"]
[ECO "D52"]
[WhiteElo "2529"]
[BlackElo "2463"]
[Annotator "TA"]
[PlyCount "141"]
[EventDate "2022.06.14"]
[EventType "swiss"]
[EventCountry "KAZ"]
[SourceTitle "playchess.com"]
[Source "ChessBase"]
[SourceQuality "1"]
[TimeControl "5400+30"]

{[%evp 19,141,47,42,35,43,18,31,29,33,38,29,14,22,16,15,6,8,7,20,0,14,0,0,0,16,18,18,18,43,44,44,31,44,44,40,36,38,9,16,5,5,6,5,0,72,24,25,31,34,14,112,112,226,186,233,220,241,176,467,278,310,318,278,252,465,465,392,268,257,262,261,248,250,129,250,245,248,234,207,232,295,295,568,532,447,262,554,554,579,578,695,695,655,647,647,635,570,562,636,516,1467,954,935,956,945,835,1240,1103,1283,1238,1645,1539,1612,1678,1497,1278,29975,29976,29975,29976,29986,29987,29990,29991]} 1. d4 {[%emt 0:00:04]} Nf6 {[%emt 0:08:57]} 2. c4 {[%emt 0:00:11]} e6 {[%emt 0:00:24]} 3. Nf3 {[%emt 0:00:17]} d5 {[%emt 0:00:52]} 4. Nc3 {[%emt 0:00:18]} c6 {[%emt 0:03:23]} 5. Bg5 {[%emt 0:00:17]} Nbd7 {[%emt 0:00:18]} 6. e3 {[%emt 0:00:21]} Qa5 {[%emt 0:00:25]} 7. Nd2 {[%emt 0:00:39]} Bb4 {[%emt 0:01:01]} 8. Qc2 {[%emt 0:00:13]} dxc4 {[%emt 0:00:16]} 9. Bxf6 {[%emt 0:00:39]} Nxf6 {[%emt 0:00:04]} 10. Nxc4 {[%emt 0:00:10]} Qd5 {[%emt 0:00:09]} 11. Nd2 {[%emt 0:05:33] D52: Queen's Gambit Declined: Cambridge Springs Variation.} (11. Ne5 {with more complications.} O-O 12. a3 Qe4 13. Qd2) 11... Qd8 {[%emt 0:08:05] [#]} 12. Be2 $146 {[%emt 0:03:25]} ({Predecessor:} 12. Bd3 e5 13. dxe5 Ng4 14. Nf3 Qe7 15. O-O Nxe5 16. Nxe5 Qxe5 17. Ne4 Be6 18. a3 Be7 {0-1 (53) Grigorieff,W-Naegeli,O Winterthur 1931}) 12... Nd5 {[%emt 0:05:32]} 13. O-O {[%emt 0:01:02] White is slightly better.} Nxc3 {[%emt 0:00:44]} 14. bxc3 {[%emt 0:00:07]} Be7 {[%emt 0:00:10]} 15. f4 {[%emt 0:04:47]} O-O {[%emt 0:03:22]} 16. Bf3 {[%emt 0:09:25]} c5 {[%emt 0:02:10]} 17. Nc4 {[%emt 0:04:21]} Qc7 {[%emt 0:09:54]} 18. a4 {[%emt 0:11:05]} Rb8 {[%emt 0:02:14]} 19. d5 {[%emt 0:11:28]} b6 {[%emt 0:35:35]} 20. Rad1 {[%emt 0:05:23]} exd5 {[%emt 0:00:36]} 21. Bxd5 {[%emt 0:00:06]} Ba6 {[%emt 0:04:58]} 22. e4 {[%emt 0:06:11]} Rbd8 {[%emt 0:02:45][%cal Od8d5]} 23. Qa2 {[%emt 0:01:51]} Bb7 {[%emt 0:00:19]} 24. Ne3 {[%emt 0:02:22][%cal Bc4e3,Be3f5,Bf5h6,Bh6g4,Bg4e5,Be5d3][%mdl 32]} c4 {[%emt 0:00:17]} 25. Kh1 $1 {[%emt 0:00:17]} (25. Qxc4 Qxc4 26. Nxc4 Bc5+ 27. Kh1 Ba6 $15) 25... Bc5 {[%emt 0:02:32]} 26. Qxc4 {[%emt 0:01:44]} Rc8 {[%emt 0:03:57]} 27. Nf5 {[%emt 0:02:39]} Bxd5 {[%emt 0:00:02]} 28. Rxd5 {[%emt 0:03:02]} (28. exd5 $5 {[%cal Rd5d6]} Rfe8 29. h3 $14) 28... g6 {[%emt 0:00:25]} 29. Nh6+ {[%emt 0:00:54]} Kg7 $1 {[%emt 0:00:03]} 30. Ng4 {[%emt 0:00:10] Black should prevent f5.} h5 {[%emt 0:01:07]} 31. Ne5 {[%emt 0:03:11]} Be7 {[%emt 0:00:02]} (31... Bd6 $1 $11 32. Qxc7 Bxc7) 32. Qe2 {[%emt 0:02:42] White is much more active.} (32. Qb5 $1 $16) 32... Rfd8 {[%emt 0:02:07] Inhibits Rd7.} 33. c4 $36 {[%emt 0:04:05][%mdl 2048] White has good play.} Bf6 {[%emt 0:01:12]} 34. Qf3 {[%emt 0:03:07]} Qe7 {[%emt 0:01:08] [#]} (34... Kg8 $11 {remains equal.}) 35. Nd3 $1 $16 {[%emt 0:02:47] e5 is the strong threat. White now steadily converts the win.} Bd4 {[%emt 0:00:51]} (35... Rxc4 $16 {was necessary.} 36. e5 Rxd5 37. Qxd5 (37. exf6+ Qxf6 38. Qxd5 Rxa4 $16) 37... Rxa4) 36. f5 $18 {[%emt 0:01:43][%cal Od5d4]} Rxd5 {[%emt 0:00:54]} 37. cxd5 {[%emt 0:00:17]} Rc3 {[%emt 0:00:27]} 38. Qe2 {[%emt 0:03:08] aiming for fxg6.} Be5 $2 {[%emt 0:01:07]} (38... Qa3 {keeps fighting.}) 39. h3 {[%emt 0:03:16]} (39. fxg6 $142 fxg6 40. Nxe5 Qxe5 41. Rd1 (41. Qf2 Rc8 $16)) 39... Rc8 {[%emt 0:00:41]} 40. fxg6 {[%emt 0:01:16]} fxg6 {[%emt 0:00:04]} 41. Qf2 {[%emt 0:00:19]} Re8 $2 {[%emt 0:00:33]} (41... Qd6 42. a5 bxa5 43. Qxa7+ Rc7 44. Qxa5 Re7) 42. Nxe5 {[%emt 0:02:47]} Qxe5 {[%emt 0:00:01][%mdl 4096] Endgame KQR-KQR} 43. Qf7+ {[%emt 0:00:46]} Kh6 {[%emt 0:00:02]} 44. Re1 {[%emt 0:02:09]} (44. Qxa7 Qxe4 45. Qd7 (45. Qxb6 Qxd5 46. Qb2 Qa5 $16) 45... Re5 $11) 44... Re7 {[%emt 0:01:21]} 45. Qf8+ {[%emt 0:00:21]} Kh7 {[%emt 0:00:07]} 46. Qd8 {[%emt 0:01:34]} (46. Qf3 $18) 46... Re8 {[%emt 0:00:33]} (46... Kg7 $16 47. Qc8 (47. Rf1 Rf7 $16) 47... Qd4) 47. Qd7+ {[%emt 0:00:06]} Re7 {[%emt 0:00:01] [#]} 48. Qc6 {[%emt 0:00:14] Black must now prevent d6.} Rc7 {[%emt 0:00:27]} 49. Qb5 {[%emt 0:00:31]} Rf7 {[%emt 0:00:49]} 50. Qd3 {[%emt 0:00:18] And now d6 would win.} Kg7 $2 {[%emt 0:00:34]} (50... Rd7 {was called for.} 51. Rd1 Qd6) 51. Rd1 {[%emt 0:00:39]} Rd7 {[%emt 0:01:15]} 52. Kg1 {[%emt 0:00:42]} (52. d6 $142) 52... Rc7 {[%emt 0:01:07] Prevents Qc4.} (52... h4 53. Kh1 g5) 53. d6 {[%emt 0:01:19]} Rd7 {[%emt 0:00:09]} 54. Qc4 {[%emt 0:00:32]} Qc5+ {[%emt 0:00:50]} 55. Qxc5 {[%emt 0:00:06]} bxc5 {[%emt 0:00:02] KR-KR} 56. e5 {[%emt 0:00:19] e6 would kill now.} Kf7 {[%emt 0:00:13]} 57. Rc1 {[%emt 0:00:17]} Ke6 {[%emt 0:00:03]} 58. Rxc5 {[%emt 0:00:04] Strongly threatening Rc7.} Rb7 {[%emt 0:00:03]} 59. Kf2 {[%emt 0:01:15] Hoping for Rc7.} g5 {[%emt 0:00:04]} (59... Rf7+ $142 60. Ke3 Rf5) 60. Ke3 {[%emt 0:00:35]} Rb1 {[%emt 0:00:48]} 61. Kd4 {[%emt 0:00:45]} Rd1+ {[%emt 0:00:16]} 62. Kc4 {[%emt 0:00:09]} a6 {[%emt 0:00:32]} 63. Kb4 {[%emt 0:00:42]} Rd2 {[%emt 0:00:49]} 64. g3 {[%emt 0:00:51]} Rd3 {[%emt 0:00:12]} 65. Rc3 {[%emt 0:00:11]} Rd5 {[%emt 0:00:24]} 66. Re3 {[%emt 0:00:12]} Rd1 {[%emt 0:01:00]} 67. Kc5 {[%emt 0:00:20]} Ra1 {[%emt 0:01:56]} 68. Rd3 {[%emt 0:00:15] White mates.} Rc1+ {[%emt 0:00:22]} 69. Kb6 {[%emt 0:00:06]} Kd7 {[%emt 0:00:08]} 70. e6+ {[%emt 0:00:13]} Kd8 {[%emt 0:00:14]} 71. Rf3 {[%emt 0:00:10] Weighted Error Value: White=0.23 (precise) /Black=0.38} 1-0

[Event "Aktobe Open 2022"]
[Site "Aktobe"]
[Date "2022.06.20"]
[Round "9.5"]
[White "Vokhidov, Shamsiddin"]
[Black "Aitbayev, Aslan"]
[Result "1-0"]
[ECO "C02"]
[WhiteElo "2536"]
[BlackElo "2420"]
[Annotator "TA"]
[PlyCount "127"]
[EventDate "2022.06.14"]
[EventType "swiss"]
[EventCountry "KAZ"]
[SourceTitle "playchess.com"]
[Source "ChessBase"]
[SourceQuality "1"]
[TimeControl "5400+30"]

{[%evp 15,127,27,32,35,33,30,56,45,48,-2,0,-6,67,67,62,45,53,52,53,53,111,111,109,106,104,95,114,119,113,41,29,50,43,35,53,55,89,42,125,133,129,132,121,121,132,132,132,132,125,125,125,125,125,125,125,125,125,111,135,135,135,135,133,132,123,88,122,120,159,120,285,285,428,416,414,411,400,377,449,374,343,333,326,303,428,428,428,415,428,428,414,414,428,421,421,400,604,428,428,428,428,428,428,393,428,428,428,428,414,412,960,829,954,842]} 1. e4 {[%emt 0:00:04]} e6 {[%emt 0:03:28]} 2. d4 {[%emt 0:00:11]} d5 {[%emt 0:00:06]} 3. e5 {[%emt 0:00:07]} c5 {[%emt 0:00:05]} 4. c3 {[%emt 0:00:03]} Nc6 {[%emt 0:01:14]} 5. Nf3 {[%emt 0:00:18]} Bd7 {[%emt 0:02:00]} 6. Be2 {[%emt 0:00:22]} Nge7 {[%emt 0:00:19][%cal Bg8e7,Be7f5,Bf5h4][%mdl 32]} 7. O-O {[%emt 0:00:06]} Nf5 {[%emt 0:04:41]} 8. dxc5 {[%emt 0:00:11]} Bxc5 {[%emt 0:00:21]} 9. Bd3 {[%emt 0:00:01] C02: French: Advance Variation.} Nh4 {[%emt 0:08:55]} 10. Nbd2 {[%emt 0:00:11]} h6 {[%emt 0:05:31] [#]} 11. b4 $146 {[%emt 0:02:32] White is slightly better.} ({Predecessor:} 11. Qe2 Nxf3+ 12. Nxf3 g5 13. b4 Be7 14. a3 Qc7 15. Re1 O-O-O 16. Bd2 Kb8 17. Rac1 {1-0 (26) Rozentalis,E (2610)-Zakharevich,I (2485) St Petersburg 1996}) 11... Bb6 {[%emt 0:00:25]} 12. b5 {[%emt 0:08:29]} (12. a4 $14) 12... Nxf3+ $11 {[%emt 0:05:43]} 13. Nxf3 {[%emt 0:00:10]} Ne7 {[%emt 0:03:05]} (13... Na5 $1 $11) 14. Qa4 $14 {[%emt 0:07:31]} Qc7 {[%emt 0:09:20]} 15. Bd2 {[%emt 0:01:01] White is more active.} O-O {[%emt 0:08:58]} 16. Qh4 {[%emt 0:21:32]} Ng6 {[%emt 0:16:37]} 17. Qg3 {[%emt 0:01:18]} a6 {[%emt 0:06:09]} (17... Be8 $14) 18. bxa6 $16 {[%emt 0:02:56]} (18. Bxg6 fxg6 19. Qxg6 Bxb5 $14) 18... Rxa6 {[%emt 0:02:08]} 19. Bxa6 {[%emt 0:00:29]} bxa6 {[%emt 0:00:01]} 20. Rfe1 {[%emt 0:01:18]} Qc4 {[%emt 0:01:30]} 21. h4 {[%emt 0:04:13]} Rc8 {[%emt 0:04:48]} 22. Nd4 {[%emt 0:06:27]} ({Don't take} 22. h5 Ne7) (22. Reb1 $16 Bc5 23. h5) 22... Bxd4 $14 {[%emt 0:01:44]} 23. cxd4 {[%emt 0:00:27]} Qxd4 {[%emt 0:00:03]} 24. h5 {[%emt 0:00:30] Threatens to win with Be3.} Ne7 {[%emt 0:01:22]} 25. Qf4 {[%emt 0:00:16]} ({Don't play} 25. Bxh6 Nf5 26. Be3 Qxa1 27. Rxa1 Nxg3 28. fxg3 Rc2 $17) 25... Qd3 {[%emt 0:02:06]} 26. Rac1 {[%emt 0:00:41]} ({White should try} 26. Qe3 $16 Bb5 27. Rac1) 26... Rc4 {[%emt 0:03:19]} (26... Rxc1 $14 27. Rxc1 Nc6) 27. Qe3 $16 {[%emt 0:01:13]} Qxe3 {[%emt 0:03:44]} 28. Bxe3 {[%emt 0:00:12]} Bb5 {[%emt 0:00:34]} 29. Rxc4 {[%emt 0:00:13]} dxc4 {[%emt 0:01:42][%mdl 4096] Endgame KRB-KBN} 30. Rc1 {[%emt 0:00:15]} Nd5 {[%emt 0:00:06]} 31. Bd2 {[%emt 0:00:03] Prevents c3.} Kh7 {[%emt 0:00:22]} 32. f3 {[%emt 0:03:51]} g6 {[%emt 0:00:38]} 33. a4 {[%emt 0:01:42]} c3 {[%emt 0:01:06]} 34. Bxc3 {[%emt 0:01:03]} Bxa4 {[%emt 0:00:03]} 35. hxg6+ $1 {[%emt 0:01:12]} Kxg6 {[%emt 0:00:09]} 36. Kf2 {[%emt 0:00:47]} h5 {[%emt 0:00:44]} 37. Bd2 {[%emt 0:02:41]} Kf5 {[%emt 0:00:18]} 38. Rh1 {[%emt 0:00:47]} Kxe5 {[%emt 0:00:45]} 39. Rxh5+ {[%emt 0:00:02]} Kf6 {[%emt 0:00:46]} 40. Rg5 {[%emt 0:00:50]} Bc2 {[%emt 0:01:00]} 41. Rg8 {[%emt 0:00:09]} Bd3 {[%emt 0:00:26]} 42. g4 {[%emt 0:01:36]} e5 $2 {[%emt 0:00:32] [#] This move loses the game for Black.} (42... Ke7 $16 43. Ra8 e5) 43. Re8 $1 $18 {[%emt 0:03:06]} Bb5 {[%emt 0:00:14] [#]} (43... Nc7 {is a better defense.}) 44. Bg5+ $1 {[%emt 0:00:57][%mdl 512]} Kg6 {[%emt 0:02:06]} 45. Rxe5 {[%emt 0:01:06]} Nb4 {[%emt 0:01:51]} 46. Rf5 {[%emt 0:01:27]} Bd7 {[%emt 0:01:22]} 47. Ra5 {[%emt 0:00:44]} Bb5 {[%emt 0:00:06]} 48. Bd2 {[%emt 0:00:15] Rxb5 is the strong threat.} Nd3+ {[%emt 0:00:48]} 49. Kg3 {[%emt 0:00:18]} Kf6 {[%emt 0:00:25]} (49... f5 $142 50. g5 Nb2) 50. f4 {[%emt 0:00:43]} Ke6 {[%emt 0:00:23]} 51. Kh4 {[%emt 0:00:32]} Nf2 {[%emt 0:00:34]} 52. Ra1 {[%emt 0:00:18]} Ne4 {[%emt 0:00:14]} 53. Be3 {[%emt 0:00:13]} Be2 {[%emt 0:00:20]} 54. Rb1 {[%emt 0:00:22]} Bb5 {[%emt 0:01:24]} 55. Rd1 {[%emt 0:00:13]} a5 {[%emt 0:00:20]} (55... Nd6 $142 56. Bc5 Ne8) 56. Rb1 {[%emt 0:02:01]} Bc6 {[%emt 0:00:28]} 57. Rb6 {[%emt 0:00:06]} Kd5 {[%emt 0:00:10]} 58. Ra6 {[%emt 0:00:03]} a4 {[%emt 0:00:03]} 59. Ra7 {[%emt 0:00:28]} f6 {[%emt 0:01:23]} 60. Kh5 {[%emt 0:00:34]} Be8+ {[%emt 0:00:45] [#]} 61. Kh6 $1 {[%emt 0:00:02]} Nd6 {[%emt 0:00:39]} 62. Kg7 {[%emt 0:00:39]} f5 {[%emt 0:00:31]} (62... Ne4 $142 63. Kf8 Nd6) 63. g5 {[%emt 0:00:03]} Nc4 {[%emt 0:00:29]} 64. Bc1 {[%emt 0:00:02] Weighted Error Value: White=0.09 (flawless) /Black=0.27 (precise)} 1-0